bitfinex-derivatives/quotes_BTCF0:USTF0_20210102
["timestamp","ask_amount","ask_price","bid_price","bid_amount"]
[1609557838617,0.99343158,29341.0,29340.0,0.00036325]
[1609557838814,0.99343158,29341.0,29338.0,0.00036325]
[1609557839216,0.99343158,29341.0,29340.0,0.00036325]
[1609557839415,0.99343158,29341.0,29339.0,0.00036325]
[1609557839616,0.99343158,29341.0,29340.0,0.00036331]
[1609557840117,0.99343158,29341.0,29335.0,0.00036331]
[1609557840319,0.99343158,29341.0,29334.0,4.4115]
[1609557840518,0.99343158,29341.0,29340.0,0.00036331]
[1609557840718,0.99343158,29341.0,29335.0,0.00036331]
[1609557840919,0.99343158,29341.0,29340.0,0.00036331]
[1609557840920,1.99343158,29341.0,29340.0,0.00036331]
[1609557841120,1.99343158,29341.0,29334.0,4.4115]
[1609557841318,1.99343158,29341.0,29336.0,0.00036331]
[1609557841518,1.99343158,29341.0,29334.0,4.4115]
[1609557841519,1.99343158,29341.0,29335.0,0.00036331]
[1609557841719,1.99343158,29341.0,29337.0,0.00036331]
[1609557842022,1.99343158,29341.0,29336.0,0.00036331]
[1609557842221,0.18043158,29337.0,29334.0,4.4115]
[1609557842622,0.18043158,29337.0,29335.0,0.00036331]
[1609557844121,0.18043158,29337.0,29336.0,0.18043158]
[1609557844722,0.18043158,29337.0,29336.0,0.18079486]
[1609557847224,0.18043158,29337.0,29336.0,0.18043158]
[1609557847623,0.18043158,29337.0,29336.0,0.18079485]
[1609557849925,0.18043158,29337.0,29336.0,0.28399485]
[1609557850126,0.18043158,29337.0,29336.0,0.18079485]
[1609557852429,0.17835944,29337.0,29336.0,0.18079485]
[1609557853232,0.17835944,29337.0,29336.0,0.00036327]
[1609557853632,0.17835944,29337.0,29334.0,4.4115]
[1609557853633,0.17835944,29337.0,29335.0,0.00036329]
[1609557853832,0.17835944,29337.0,29336.0,0.00036329]
[1609557854233,0.98945944,29337.0,29336.0,0.00036329]
[1609557854434,0.98945944,29337.0,29335.0,0.00036329]
[1609557854633,0.98945944,29337.0,29336.0,0.00036329]
[1609557855133,0.98945944,29337.0,29335.0,0.00036331]
[1609557855334,0.17835944,29337.0,29335.0,0.00036331]
[1609557855534,0.17835944,29337.0,29336.0,5.68766331]
[1609557856936,1.17835944,29337.0,29336.0,5.68766331]
[1609557862842,1.17835944,29337.0,29336.0,5.72593912]
[1609557874963,0.17835944,29337.0,29336.0,5.72593912]
[1609557876464,0.17835944,29337.0,29336.0,5.9063707]
[1609557881170,0.17628733,29337.0,29336.0,5.9063707]
[1609557896892,0.17421522,29337.0,29336.0,5.9063707]
[1609557900598,0.17421522,29337.0,29336.0,6.9063707]
[1609557905112,0.15274,29338.0,29336.0,1.29212687]
[1609557905309,0.15274,29338.0,29337.0,3.9411]
[1609557905510,0.0043357,29342.0,29337.0,5.05279071]
[1609557905910,0.0043357,29342.0,29338.0,0.03863566]
[1609557906112,0.0043357,29342.0,29338.0,0.11168734]
[1609557906312,0.0043357,29342.0,29339.0,1.0]
[1609557906714,0.0043357,29342.0,29341.0,0.18043158]
[1609557906913,0.0043357,29342.0,29341.0,2.18043158]
[1609557907113,0.0043357,29342.0,29341.0,2.21906567]
[1609557908316,0.00433603,29343.0,29341.0,2.21906567]
[1609557908713,0.00433603,29343.0,29342.0,0.03863341]
[1609557908914,0.15075,29344.0,29343.0,4.2413]
[1609557909114,0.15075,29344.0,29343.0,5.2413]
[1609557909314,0.15075,29344.0,29343.0,5.27993209]
[1609557909515,0.19531841,29350.0,29343.0,5.27993209]
[1609557910017,0.19531841,29350.0,29344.0,0.03863013]
[1609557910919,0.01488683,29350.0,29349.0,0.18043158]
[1609557911116,0.01488683,29350.0,29349.0,0.93233158]
[1609557911316,0.01488683,29350.0,29349.0,0.93269532]
[1609557911618,0.0148859,29351.0,29349.0,0.93269532]
[1609557912219,0.0148859,29351.0,29350.0,0.00036374]
[1609557913120,0.36474333,29353.0,29350.0,3.84936374]
[1609557913422,0.36474333,29353.0,29351.0,0.00036374]
[1609557914322,0.35420917,29353.0,29351.0,0.00036374]
[1609557914821,0.35420917,29353.0,29352.0,0.18043158]
[1609557915223,0.34987158,29353.0,29352.0,0.18079529]
[1609557918824,0.34987158,29353.0,29352.0,4.49119529]
[1609557926833,0.34987158,29353.0,29352.0,0.18079529]
[1609557928935,0.34987158,29353.0,29352.0,0.00036371]
[1609557929437,0.34987158,29353.0,29350.0,0.00036274]
[1609557929739,0.34987158,29353.0,29352.0,0.00036274]
[1609557929941,0.34987158,29353.0,29351.0,0.00036274]
[1609557930345,0.34987158,29353.0,29351.0,0.5522]
[1609557930544,0.34987158,29353.0,29352.0,0.00036274]
[1609557931543,0.34987158,29353.0,29350.0,0.00036274]
[1609557931744,0.34987158,29353.0,29350.0,5.65516274]
[1609557931945,0.34987158,29353.0,29352.0,0.00036274]
[1609557932146,0.34987158,29353.0,29351.0,0.00036274]
[1609557932345,0.34987158,29353.0,29350.0,5.6548]
[1609557932346,0.34987158,29353.0,29352.0,0.00036274]
[1609557932847,0.34987158,29353.0,29351.0,0.00036274]
[1609557933246,0.34987158,29353.0,29352.0,0.00036274]
[1609557933748,0.34987158,29353.0,29351.0,0.00036274]
[1609557933947,0.34987158,29353.0,29352.0,0.00036274]
[1609557934549,0.34987158,29353.0,29351.0,0.00036274]
[1609557934747,0.34987158,29353.0,29352.0,0.00036274]
[1609557935349,0.34987158,29353.0,29351.0,0.00036274]
[1609557935548,0.34987158,29353.0,29352.0,0.00036274]
[1609557936049,0.34987158,29353.0,29351.0,0.00036274]
[1609557936248,0.34987158,29353.0,29352.0,0.00036274]
[1609557936749,0.34987158,29353.0,29351.0,0.00036274]
[1609557943166,0.34987158,29353.0,29351.0,0.03818796]
[1609557947069,0.34987158,29353.0,29350.0,0.03818803]
[1609557947270,0.34987158,29353.0,29352.0,0.00036274]
[1609557947669,0.34987158,29353.0,29351.0,0.03818803]
[1609557947869,0.34987158,29353.0,29352.0,0.00036274]
[1609557948269,0.34987158,29353.0,29351.0,0.038188]
[1609557948571,0.34987158,29353.0,29350.0,0.038188]
[1609557948971,0.34987158,29353.0,29352.0,0.00036274]
[1609557949174,0.34987158,29353.0,29351.0,0.03818835]
[1609557949372,0.34987158,29353.0,29352.0,0.00036274]
[1609557949572,0.34987158,29353.0,29352.0,0.72766274]
[1609557949974,0.34987158,29353.0,29352.0,0.00036274]
[1609557950475,0.34987158,29353.0,29350.0,0.03818836]
[1609557950674,0.34987158,29353.0,29352.0,0.00036272]
[1609557950876,0.34987158,29353.0,29351.0,0.00036272]
[1609557951277,0.34987158,29353.0,29352.0,0.18043158]
[1609557951475,0.34987158,29353.0,29352.0,0.1807943]
[1609557954877,0.34987158,29353.0,29352.0,0.21862005]
[1609557955778,4.64108643,29353.0,29352.0,0.1807943]
[1609557957080,5.64108643,29353.0,29352.0,0.1807943]
[1609557957279,5.64108643,29353.0,29352.0,0.00036272]
[1609557957879,5.64108643,29353.0,29350.0,0.00036274]
[1609557958080,5.64108643,29353.0,29352.0,0.00036274]
[1609557958279,0.00041488,29352.0,29351.0,0.00036274]
[1609557958579,5.64108646,29353.0,29352.0,0.00036274]
[1609557958779,5.64067158,29353.0,29351.0,0.00036274]
[1609557959179,5.64067158,29353.0,29350.0,0.00036274]
[1609557959381,5.64067158,29353.0,29352.0,0.00036274]
[1609557959581,5.64067158,29353.0,29351.0,0.00036277]
[1609557959880,5.64108648,29353.0,29352.0,0.00036277]
[1609557960081,5.65553453,29353.0,29352.0,0.00036277]
[1609557960380,5.65594943,29353.0,29350.0,0.00036277]
[1609557960681,5.65594943,29353.0,29352.0,0.00036277]
[1609557960883,5.65553453,29353.0,29351.0,0.00036277]
[1609557961083,6.26015911,29353.0,29351.0,0.00036277]
[1609557961283,6.26015911,29353.0,29350.0,0.00036277]
[1609557961483,6.26015911,29353.0,29352.0,0.00036277]
[1609557961683,6.26015911,29353.0,29351.0,0.00036277]
[1609557961984,6.26057401,29353.0,29352.0,0.00036277]
[1609557962186,6.26015911,29353.0,29352.0,0.00036277]
[1609557962486,6.26057401,29353.0,29350.0,0.00036277]
[1609557962786,6.26057401,29353.0,29352.0,0.00036277]
[1609557962986,0.0004149,29352.0,29351.0,0.00036277]
[1609557963287,0.0004149,29352.0,29350.0,0.00036277]
[1609557963589,0.0004149,29352.0,29351.0,0.00036277]
[1609557963787,6.26015911,29353.0,29351.0,0.00036277]
[1609557964187,6.26015911,29353.0,29350.0,0.00036277]
[1609557964388,6.26015911,29353.0,29352.0,0.00036274]
[1609557964589,5.64067158,29353.0,29351.0,0.00036274]
[1609557964890,5.64108646,29353.0,29352.0,0.00036274]
[1609557965289,5.64067158,29353.0,29352.0,0.00036274]
[1609557965490,5.64067158,29353.0,29350.0,0.00036274]
[1609557965491,7.00573668,29353.0,29350.0,0.00036274]
[1609557965691,7.00573668,29353.0,29352.0,0.00036274]
[1609557965890,7.0053218,29353.0,29351.0,0.00036274]
[1609557966193,7.0053218,29353.0,29350.0,0.00036274]
[1609557966392,7.0053218,29353.0,29352.0,0.00036274]
[1609557966691,7.00573668,29353.0,29350.0,0.00036274]
[1609557966992,7.00573668,29353.0,29352.0,0.00036274]
[1609557967192,0.00041488,29352.0,29351.0,0.00036274]
[1609557967395,0.62092807,29352.0,29351.0,0.00036274]
[1609557967593,0.62092807,29352.0,29350.0,0.00036274]
[1609557967792,0.62092807,29352.0,29351.0,0.00036274]
[1609557967993,0.62051319,29352.0,29351.0,0.00036274]
[1609557968293,0.62051319,29352.0,29350.0,0.00036274]
[1609557968694,0.62051319,29352.0,29351.0,0.00036274]
[1609557969194,0.62051319,29352.0,29350.0,0.00036274]
[1609557969396,0.62051319,29352.0,29351.0,0.00036274]
[1609557969595,4.64067158,29353.0,29351.0,0.00036274]
[1609557969898,4.64067158,29353.0,29350.0,0.00036274]
[1609557970096,4.64067158,29353.0,29352.0,0.00036274]
[1609557970497,4.64108645,29353.0,29350.0,0.00036274]
[1609557970697,4.64108645,29353.0,29352.0,0.00036274]
[1609557970898,4.64067158,29353.0,29351.0,0.00036274]
[1609557971298,4.64067158,29353.0,29350.0,0.00036274]
[1609557971499,5.26137837,29353.0,29352.0,0.00036274]
[1609557971698,5.26137837,29353.0,29351.0,0.00036274]
[1609557972000,5.26137837,29353.0,29350.0,0.00036274]
[1609557972200,0.62069519,29352.0,29349.0,5.0846]
[1609557972502,0.62069519,29352.0,29350.0,0.00036275]
[1609557972900,0.00434331,29351.0,29350.0,0.00036275]
[1609557973702,0.64158446,29352.0,29350.0,0.00036275]
[1609557974004,0.62069519,29352.0,29350.0,0.00036275]
[1609557974707,0.01054796,29351.0,29350.0,0.00036275]
[1609557975811,5.09084796,29351.0,29350.0,0.00036275]
[1609557976010,5.09084796,29351.0,29347.0,0.03819215]
[1609557976211,5.09084796,29351.0,29350.0,0.00036275]
[1609557976413,5.09084796,29351.0,29348.0,0.00036275]
[1609557976813,5.09084796,29351.0,29347.0,0.03819215]
[1609557977014,5.09084796,29351.0,29349.0,0.00036275]
[1609557977215,5.09084796,29351.0,29347.0,0.0378294]
[1609557977415,0.18043158,29348.0,29347.0,0.0378294]
[1609557977816,0.18043158,29348.0,29347.0,0.03819305]
[1609557978515,0.18043158,29348.0,29347.0,0.68296365]
[1609557980716,0.74413158,29348.0,29347.0,0.68296365]
[1609557982619,0.74413158,29348.0,29346.0,0.18043158]
[1609557982820,0.18043158,29348.0,29347.0,0.00036366]
[1609557983017,1.18043158,29348.0,29347.0,0.00036366]
[1609557983217,5.64753158,29348.0,29347.0,0.00036366]
[1609557983417,5.64794653,29348.0,29337.0,0.03860281]
[1609557983618,5.64794653,29348.0,29347.0,0.0003637]
[1609557983821,0.00041498,29347.0,29339.0,4.3994]
[1609557984220,5.64794656,29348.0,29347.0,0.00036372]
[1609557984419,5.64794656,29348.0,29339.0,4.3994]
[1609557984420,5.64753158,29348.0,29340.0,0.00036372]
[1609557984619,5.64794657,29348.0,29347.0,0.00036372]
[1609557984821,5.64753158,29348.0,29341.0,0.00036372]
[1609557985021,1.0,29343.0,29341.0,0.00036372]
[1609557985221,0.6424,29341.0,29340.0,0.00036372]
[1609557985424,0.82283158,29341.0,29336.0,2.20809403]
[1609557985622,0.18043158,29341.0,29340.0,0.00036373]
[1609557985824,4.22883158,29341.0,29340.0,0.00036373]
[1609557986024,4.22883158,29341.0,29337.0,0.03860524]
[1609557986225,4.22883158,29341.0,29340.0,0.00036373]
[1609557986425,4.22883158,29341.0,29338.0,0.00036373]
[1609557986826,4.22883158,29341.0,29340.0,0.00036375]
[1609557987027,4.22883158,29341.0,29339.0,0.00036375]
[1609557987227,4.22924659,29341.0,29340.0,0.00036375]
[1609557987529,4.22883158,29341.0,29340.0,0.00036375]
[1609557987731,0.18084659,29341.0,29337.0,0.03860526]
[1609557987931,0.18084659,29341.0,29339.0,4.2196]
[1609557988129,0.18043158,29341.0,29340.0,0.00036375]
[1609557989031,1.18043158,29341.0,29340.0,0.00036375]
[1609557989431,1.18043158,29341.0,29340.0,0.03860708]
[1609557990131,1.18084658,29341.0,29340.0,0.00036375]
[1609557990533,1.18084658,29341.0,29340.0,0.03860769]
[1609557991435,1.18043158,29341.0,29340.0,0.00036374]
[1609558001144,5.36273158,29341.0,29340.0,0.00036374]
[1609558001446,5.36273158,29341.0,29337.0,0.00036376]
[1609558001644,5.36273158,29341.0,29340.0,0.00036376]
[1609558001945,5.36273158,29341.0,29337.0,0.00036376]
[1609558002246,5.36273158,29341.0,29340.0,0.00036376]
[1609558002445,5.36273158,29341.0,29338.0,0.00036376]
[1609558002846,5.36273158,29341.0,29337.0,0.00036376]
[1609558003048,1.0,29339.0,29336.0,0.18043158]
[1609558003246,1.0,29339.0,29338.0,0.00036376]
[1609558004050,1.0,29339.0,29335.0,0.00036376]
[1609558004249,4.3958,29336.0,29335.0,0.00036376]
[1609558004449,4.3958,29336.0,29333.0,0.18043158]
[1609558004650,4.3958,29336.0,29335.0,0.00036376]
[1609558004854,4.3958,29336.0,29334.0,0.00036376]
[1609558005052,5.3958,29336.0,29335.0,0.00036376]
[1609558005352,5.3958,29336.0,29334.0,0.00036376]
[1609558005553,0.18043158,29335.0,29334.0,0.00036376]
[1609558005752,0.18043158,29335.0,29333.0,0.18043158]
[1609558005953,0.18043158,29335.0,29334.0,0.00036376]
[1609558008057,0.18043158,29335.0,29333.0,0.18043158]
[1609558008258,0.18043158,29335.0,29334.0,0.00036376]
[1609558009257,0.18043158,29335.0,29333.0,0.18043158]
[1609558009560,0.18043158,29335.0,29334.0,0.00036376]
[1609558010359,0.18043158,29335.0,29329.0,0.00036376]
[1609558010759,4.5752,29330.0,29323.0,4.7253]
[1609558010960,5.5752,29330.0,29326.0,0.03824519]
[1609558011160,5.5752,29330.0,29326.0,0.03860897]
[1609558011360,5.5752,29330.0,29324.0,0.11163389]
[1609558011561,1.0,29330.0,29325.0,0.18043158]
[1609558011960,1.0,29330.0,29326.0,0.03860813]
[1609558012961,0.14658,29336.0,29326.0,0.03860813]
[1609558013162,1.0,29328.0,29326.0,0.03860813]
[1609558013661,0.18043158,29327.0,29326.0,0.03860813]
[1609558014863,0.17835877,29327.0,29326.0,0.03860813]
[1609558015663,0.17835877,29327.0,29326.0,0.0386082]
[1609558020666,0.17835877,29327.0,29326.0,0.00036385]
[1609558028883,0.17628622,29327.0,29326.0,0.00036385]
[1609558029984,0.17628622,29327.0,29326.0,5.40896385]
[1609558030184,0.17628622,29327.0,29326.0,6.40896385]
[1609558030587,0.17628622,29327.0,29326.0,6.44721465]
[1609558030786,0.17628622,29327.0,29326.0,6.54881465]
[1609558030988,0.17628622,29327.0,29326.0,7.44721465]
[1609558032086,0.14658,29336.0,29326.0,7.44721465]
[1609558032487,5.3493,29337.0,29327.0,0.03861448]
[1609558033190,5.3493,29337.0,29334.0,1.0]
[1609558033387,0.274,29338.0,29335.0,5.7549]
[1609558033589,0.274,29338.0,29335.0,5.7552638]
[1609558033787,0.274,29338.0,29336.0,0.00036378]
[1609558035688,0.7495,29337.0,29336.0,0.00036378]
[1609558035889,0.92993158,29337.0,29336.0,0.00036378]
[1609558036287,0.92993158,29337.0,29336.0,1.00036378]
[1609558045101,0.11881299,29343.0,29336.0,5.89756378]
[1609558045701,0.11881299,29343.0,29337.0,0.00036221]
[1609558046003,0.11881299,29343.0,29342.0,0.18043158]
[1609558046204,0.11881299,29343.0,29342.0,1.92923158]
[1609558046403,0.11881299,29343.0,29342.0,1.92959374]
[1609558047002,0.11881299,29343.0,29342.0,2.92959374]
[1609558047603,0.11881299,29343.0,29342.0,2.18079374]
[1609558048908,0.11448,29343.0,29342.0,2.18079374]
[1609558049104,5.61953158,29348.0,29342.0,1.18079374]
[1609558049506,5.61953158,29348.0,29343.0,0.00036218]
[1609558050106,5.61953158,29348.0,29347.0,0.18043158]
[1609558050307,0.18043158,29348.0,29347.0,0.18043158]
[1609558050708,0.18043158,29348.0,29347.0,0.18079376]
[1609558068433,0.18043158,29348.0,29347.0,0.00036218]
[1609558068633,4.66993158,29348.0,29347.0,0.00036218]
[1609558068833,4.66993158,29348.0,29341.0,0.0003622]
[1609558069035,5.66993158,29348.0,29347.0,0.0003622]
[1609558069233,5.66993158,29348.0,29342.0,0.00036223]
[1609558069634,1.18084654,29348.0,29347.0,0.00036223]
[1609558069834,1.18084654,29348.0,29343.0,0.00036223]
[1609558069835,0.00041498,29347.0,29343.0,0.00036223]
[1609558070033,5.42234656,29348.0,29336.0,4.0378]
[1609558070333,0.000415,29346.0,29344.0,0.00036225]
[1609558070534,0.18043158,29345.0,29337.0,0.00036225]
[1609558070733,0.77173158,29345.0,29337.0,0.00036225]
[1609558070935,0.00041502,29344.0,29337.0,0.00036225]
[1609558071135,1.0,29339.0,29337.0,0.00036225]
[1609558072337,0.6295,29338.0,29337.0,0.00036225]
[1609558072539,0.80993158,29338.0,29337.0,0.00036225]
[1609558075043,0.80993158,29338.0,29337.0,0.00036226]
[1609558077646,0.80993158,29338.0,29330.0,0.03792793]
[1609558078747,0.18043158,29331.0,29330.0,0.03792793]
[1609558080352,0.18043158,29331.0,29330.0,0.00036226]
[1609558087962,4.00483158,29331.0,29330.0,0.00036226]
[1609558088163,4.00483158,29331.0,29328.0,0.00036232]
[1609558091266,0.18043158,29331.0,29328.0,0.00036232]
[1609558091567,5.3104,29329.0,29328.0,0.00036232]
[1609558102081,5.3104,29329.0,29328.0,0.03823194]
[1609558104586,5.3104,29329.0,29328.0,0.00036232]
[1609558104988,5.3104,29329.0,29317.0,0.03823474]
[1609558105190,6.3104,29329.0,29319.0,0.18043158]
[1609558105589,6.3104,29329.0,29320.0,0.03823664]
[1609558106090,6.3104,29329.0,29317.0,0.03823683]
[1609558106291,6.3104,29329.0,29321.0,0.03823679]
[1609558106692,6.3104,29329.0,29317.0,0.03823657]
[1609558106893,0.00041516,29328.0,29322.0,0.03823707]
[1609558107092,1.0,29323.0,29318.0,0.03823719]
[1609558107293,0.18043158,29319.0,29318.0,0.03823719]
[1609558107493,0.91933158,29319.0,29314.0,0.03823777]
[1609558107693,0.18043158,29319.0,29318.0,0.03823819]
[1609558107894,0.18043158,29319.0,29315.0,0.03823902]
[1609558108294,0.18043158,29319.0,29318.0,0.03823947]
[1609558108494,5.13903158,29319.0,29316.0,0.03824235]
[1609558108694,5.13903158,29319.0,29318.0,0.00036311]
[1609558109093,5.13903158,29319.0,29317.0,0.0003632]
[1609558109294,5.13903158,29319.0,29318.0,0.0003632]
[1609558109894,5.13903158,29319.0,29315.0,0.0003632]
[1609558110095,5.13903158,29319.0,29318.0,0.0003632]
[1609558110296,5.13903158,29319.0,29316.0,0.0003632]
[1609558110496,5.13903158,29319.0,29318.0,0.0003632]
[1609558110899,5.13903158,29319.0,29314.0,0.0003632]
[1609558111099,5.13903158,29319.0,29318.0,0.0003632]
[1609558111300,5.13903158,29319.0,29315.0,0.0003632]
[1609558111599,5.13903158,29319.0,29314.0,0.00036315]
[1609558111801,0.18043158,29319.0,29314.0,0.00036315]
[1609558112003,5.655,29317.0,29316.0,0.00036317]
[1609558112201,5.655,29317.0,29315.0,0.00036317]
[1609558112402,5.655,29317.0,29316.0,0.00036317]
[1609558113003,5.655,29317.0,29314.0,0.00036317]
[1609558113202,5.655,29317.0,29316.0,0.00036317]
[1609558113402,5.655,29317.0,29315.0,0.00036317]
[1609558113703,5.655,29317.0,29309.0,0.00036317]
[1609558114103,5.655,29317.0,29316.0,0.00036317]
[1609558114303,5.655,29317.0,29310.0,0.0003632]
[1609558114505,5.655,29317.0,29316.0,0.0003632]
[1609558114805,5.655,29317.0,29311.0,0.00036318]
[1609558115007,5.655,29317.0,29316.0,0.00036318]
[1609558115408,5.655,29317.0,29312.0,0.00036318]
[1609558115608,5.655,29317.0,29316.0,0.00036318]
[1609558115807,5.655,29317.0,29313.0,0.00036318]
[1609558116109,5.655,29317.0,29316.0,0.00036318]
[1609558116308,5.655,29317.0,29314.0,0.00036318]
[1609558116508,0.18043158,29319.0,29314.0,5.54666318]
[1609558116709,0.18043158,29319.0,29314.0,6.5463]
[1609558116908,0.18043158,29319.0,29315.0,0.00036318]
[1609558117310,0.16757,29320.0,29317.0,0.18043158]
[1609558117711,0.16757,29320.0,29318.0,0.00036315]
[1609558118213,3.85,29322.0,29318.0,0.00036315]
[1609558119114,3.85,29322.0,29321.0,1.0]
[1609558119313,3.85,29322.0,29321.0,2.18043158]
[1609558119514,3.85,29322.0,29321.0,2.18079467]
[1609558120515,3.85,29322.0,29321.0,1.18079467]
[1609558123021,3.84792687,29322.0,29321.0,1.18079467]
[1609558126026,3.84792687,29322.0,29321.0,2.18079467]
[1609558127223,3.84792687,29322.0,29321.0,1.18079467]
[1609558129027,3.84792687,29322.0,29321.0,0.18079467]
[1609558134537,3.84792687,29322.0,29321.0,0.00036309]
[1609558134937,3.84792687,29322.0,29316.0,1.0]
[1609558135137,3.84792687,29322.0,29310.0,2.06140412]
[1609558135337,3.84792687,29322.0,29317.0,0.00036315]
[1609558135537,0.18043158,29318.0,29315.0,0.18043158]
[1609558135737,4.04473158,29318.0,29315.0,0.18043158]
[1609558136140,4.04473158,29318.0,29316.0,0.00036318]
[1609558137141,0.18043158,29318.0,29316.0,0.00036318]
[1609558139744,0.18043158,29318.0,29316.0,0.03825365]
[1609558140544,0.8115,29317.0,29316.0,0.03825365]
[1609558140744,0.8115,29317.0,29316.0,0.03789047]
[1609558141045,0.8115,29317.0,29316.0,0.03825361]
[1609558143949,0.18043158,29318.0,29316.0,0.03825361]
[1609558144553,4.9397,29317.0,29316.0,0.03825361]
[1609558151357,4.9397,29317.0,29314.0,0.03825884]
[1609558151558,4.9397,29317.0,29316.0,0.03825724]
[1609558151958,4.9397,29317.0,29315.0,0.03825934]
[1609558152159,4.9397,29317.0,29316.0,0.00036318]
[1609558152560,4.9397,29317.0,29312.0,0.03825928]
[1609558153661,0.18043158,29313.0,29312.0,0.03825928]
[1609558153861,0.89663158,29313.0,29312.0,0.03825928]
[1609558154562,0.18043158,29313.0,29312.0,0.03825928]
[1609558156664,4.53903158,29313.0,29312.0,0.03825928]
[1609558158065,4.53903158,29313.0,29312.0,0.00036318]
[1609558158668,4.53903158,29313.0,29312.0,0.03782678]
[1609558159269,4.53903158,29313.0,29312.0,0.00036318]
[1609558159669,4.53903158,29313.0,29312.0,0.03782669]
[1609558160770,0.18043158,29313.0,29312.0,0.03782669]
[1609558160970,0.18043158,29313.0,29312.0,5.31732669]
[1609558161170,0.18043158,29313.0,29312.0,7.31732669]
[1609558161873,0.18043158,29313.0,29312.0,2.03782669]
[1609558162575,0.17835801,29313.0,29312.0,2.03782669]
[1609558164276,0.17835801,29313.0,29312.0,1.03782669]
[1609558165081,0.17835801,29313.0,29312.0,0.03782669]
[1609558167983,0.17835801,29313.0,29312.0,5.17352669]
[1609558168583,0.17835801,29313.0,29312.0,0.03782669]
[1609558172185,5.54085801,29313.0,29312.0,0.03782669]
[1609558173086,5.54085801,29313.0,29312.0,1.03782669]
[1609558175088,5.54085801,29313.0,29312.0,0.03782669]
[1609558177193,5.54085801,29313.0,29312.0,1.03782669]
[1609558179095,5.54085801,29313.0,29312.0,0.03782669]
[1609558183003,5.53878436,29313.0,29312.0,0.03782669]
[1609558185103,5.53878436,29313.0,29312.0,1.03782669]
[1609558185502,5.53878436,29313.0,29312.0,1.10984612]
[1609558186303,5.53878436,29313.0,29312.0,1.03782669]
[1609558189010,5.53878436,29313.0,29312.0,2.03782669]
[1609558189208,0.17628436,29313.0,29312.0,2.03782669]
[1609558190211,0.17628436,29313.0,29312.0,2.10984566]
[1609558190412,0.17628436,29313.0,29312.0,7.47894566]
[1609558193113,0.17628436,29313.0,29312.0,7.40692669]
[1609558193817,0.18043158,29316.0,29312.0,7.40692669]
[1609558194216,0.18043158,29316.0,29313.0,0.03782296]
[1609558195119,0.18043158,29316.0,29315.0,1.0]
[1609558195617,0.18043158,29316.0,29315.0,1.03782166]
[1609558195818,0.18043158,29316.0,29315.0,1.21825324]
[1609558197219,0.18043158,29316.0,29315.0,0.21825324]
[1609558197920,0.18043158,29316.0,29315.0,0.03782166]
[1609558198320,4.72613158,29316.0,29315.0,0.03782166]
[1609558198522,4.72613158,29316.0,29314.0,0.03782292]
[1609558198721,4.72613158,29316.0,29315.0,0.03782424]
[1609558199322,4.72613158,29316.0,29314.0,0.03782406]
[1609558199523,4.72613158,29316.0,29315.0,0.03782374]
[1609558200025,4.72613158,29316.0,29313.0,0.03782367]
[1609558200226,4.72613158,29316.0,29315.0,0.03782354]
[1609558200524,4.72613158,29316.0,29313.0,0.03782366]
[1609558200822,4.72613158,29316.0,29312.0,1.18043158]
[1609558200823,4.72613158,29316.0,29315.0,0.03782397]
[1609558201024,4.72613158,29316.0,29314.0,0.03782382]
[1609558201424,4.72613158,29316.0,29313.0,0.03782378]
[1609558201625,4.72613158,29316.0,29315.0,0.03782351]
[1609558201824,4.72613158,29316.0,29314.0,0.03782348]
[1609558202125,4.72613158,29316.0,29315.0,0.03782366]
[1609558202626,4.72613158,29316.0,29313.0,0.03782366]
[1609558202928,4.72613158,29316.0,29315.0,0.03782364]
[1609558203125,4.72613158,29316.0,29312.0,0.18043158]
[1609558203126,4.72613158,29316.0,29314.0,1.03782337]
[1609558203425,4.72613158,29316.0,29315.0,0.03782343]
[1609558206328,0.18043158,29316.0,29315.0,0.03782343]
[1609558209431,0.18043158,29316.0,29314.0,0.03782366]
[1609558209732,0.18043158,29316.0,29315.0,0.03782392]
[1609558210236,0.18043158,29316.0,29314.0,0.03782382]
[1609558210633,0.18043158,29316.0,29315.0,0.03782387]
[1609558211033,5.27153158,29316.0,29313.0,0.03782431]
[1609558211233,5.27153158,29316.0,29315.0,0.03746207]
[1609558211433,5.27153158,29316.0,29315.0,0.03782429]
[1609558211636,5.27153158,29316.0,29313.0,0.03782377]
[1609558211834,5.27153158,29316.0,29315.0,0.03782377]
[1609558212033,5.27153158,29316.0,29314.0,0.03782375]
[1609558212435,5.27153158,29316.0,29313.0,0.0378238]
[1609558212635,5.27153158,29316.0,29315.0,0.03782377]
[1609558212835,5.27153158,29316.0,29314.0,0.0378238]
[1609558213035,5.0911,29316.0,29314.0,0.0378238]
[1609558213235,5.0911,29316.0,29313.0,0.03782331]
[1609558213435,5.0911,29316.0,29315.0,0.03782325]
[1609558213636,5.0911,29316.0,29314.0,0.03782342]
[1609558213937,5.0911,29316.0,29314.0,0.0374612]
[1609558214138,0.18043158,29315.0,29312.0,1.18043158]
[1609558214539,0.18043158,29315.0,29313.0,0.03782345]
[1609558214937,0.18043158,29315.0,29314.0,0.03782346]
[1609558215338,0.18043158,29315.0,29313.0,0.03782561]
[1609558215539,0.18043158,29315.0,29314.0,0.03782598]
[1609558216138,0.18043158,29315.0,29313.0,0.03782298]
[1609558216339,0.18043158,29315.0,29314.0,0.03782258]
[1609558216938,0.18043158,29315.0,29313.0,0.03782299]
[1609558217139,0.18043158,29315.0,29314.0,0.03782297]
[1609558217640,0.18043158,29315.0,29313.0,0.03782333]
[1609558217839,0.18043158,29315.0,29314.0,0.03782326]
[1609558218341,0.18043158,29315.0,29313.0,0.03757853]
[1609558219140,0.18043158,29315.0,29312.0,5.50733158]
[1609558219442,0.18043158,29315.0,29313.0,0.03757698]
[1609558221242,4.58445792,29315.0,29314.0,1.0]
[1609558221543,4.58445792,29315.0,29314.0,1.03757728]
[1609558224651,0.17835792,29315.0,29314.0,1.03757728]
[1609558231662,0.1762843,29315.0,29314.0,1.03757728]
[1609558232663,0.13961,29319.0,29314.0,2.03757728]
[1609558232963,0.01470942,29321.0,29317.0,4.3071]
[1609558233363,0.01470942,29321.0,29318.0,0.0375782]
[1609558233964,0.01470942,29321.0,29318.0,1.0375782]
[1609558234465,0.01470942,29321.0,29320.0,0.18043158]
[1609558234965,0.01470942,29321.0,29320.0,0.21800938]
[1609558235167,0.00429056,29321.0,29320.0,1.21800938]
[1609558235968,5.47039261,29322.0,29320.0,1.21800938]
[1609558236268,5.47039261,29322.0,29321.0,0.00036168]
[1609558236668,5.65082419,29322.0,29321.0,0.00036168]
[1609558237169,5.65082419,29322.0,29321.0,1.00036168]
[1609558243073,5.65082419,29322.0,29321.0,0.00036168]
[1609558243273,5.65082419,29322.0,29321.0,1.00036168]
[1609558246378,5.66128145,29322.0,29321.0,1.00036168]
[1609558249283,5.65082419,29322.0,29321.0,1.00036168]
[1609558249982,0.1851395,29322.0,29321.0,1.00036168]
[1609558251083,0.1851395,29322.0,29321.0,0.00036168]
[1609558253286,0.19130501,29322.0,29321.0,0.00036168]